{"text_format":"1","workbook":"xlsx","n_sheets":1,"sheets":["conceptos"],"not_rendered":{"charts":0,"images":2,"macros":1,"external_links":0,"defined_names":1,"comments":0,"pivot_tables":0},"unopened":[],"bounds":{"document_bytes":16777216,"sheet_cells":100000,"rows_first":2000,"rows_last":500,"rows_between":2000,"halvings":0,"cell_chars":16384,"cell_head_chars":4096},"cells_cut":0,"cells_raw":0,"read":"whole","date_system":"1900"}

{"sheet":"conceptos","index":0,"n_rows":63,"n_cols":8,"rows_kept":63,"cut":false,"hidden":false,"merged":[[60,0,60,4],[61,0,62,4],[13,0,13,6],[0,2,0,5],[9,2,9,5],[1,2,3,5],[4,2,4,3],[6,2,6,3],[7,2,7,3],[4,4,4,5],[5,4,5,5],[6,4,6,5],[7,4,7,5],[10,2,10,5],[11,2,11,5],[5,1,8,1]]}
[null,"GOBIERNO DEL ESTADO DE JALISCO","LICITACIÓN PÚBLICA ESTATAL"]
[null,"INSTITUTO DE LA INFRAESTRUCTURA FÍSICA EDUCATIVA DEL","INFEJAL-E-REM-B-CON-04051-LP-0219-2020"]
[null,"ESTADO DE JALISCO"]
[]
[null,"DESCRIPCIÓN GENERAL DE LOS TRABAJOS:","FECHA DE INICIO:"]
[null,null,null,"FECHA DE TERMINACIÓN:"]
[null,null,"PLAZO DE EJECUCIÓN:"]
[null,null,"FECHA:"]
[]
[null,"RAZÓN SOCIAL DEL LICITANTE:","NOMBRE, CARGO Y FIRMA DEL LICITANTE:",null,null,null,"DOCUMENTO"]
[]
[]
[]
["PRESUPUESTO DE OBRA"]
[]
["CLAVE","DESCRIPCIÓN","UNIDAD","CANTIDAD","PRECIO UNITARIO ($)","PRECIO UNITARIO ($) CON LETRA","IMPORTE ($) M.N."]
["TRABAJO : BAS-CON-04051","TERMINACIÓN DE AULA DIDÁCTICA (APLANADOS, PINTURAS CANCELERÍAS E INSTALACIONES ELÉCTRICAS) EN EL JARDÍN DE NIÑOS ESTEFANÍA CASTAÑEDA CCT 14DJN0918Z, UBICADO EN LA LOCALIDAD LAS DELICIAS, MUNICIPIO DE TOMATLÁN, JALISCO.",null,null,null,null,{"$f":"TEXT((G18), \"$ #,##0.00 ;\")","v":"$ 0.00 "}]
["B","EDIFICIO B",null,null,null,null,{"$f":"TEXT(SUM(G19 + G21 + G23 + G26 + G29 + G33 + G37 + G43), \"$ #,##0.00 ;\")","v":"$ 0.00 "}]
["B.01(140)","DEMOLICIONES, DESMONTAJES Y MECANICA DE SUELOS    ",null,null,null,null,{"$f":"TEXT(SUM(G20:G20), \"$ #,##0.00 ;\")","v":"$ 0.00 "}]
[140511,"DEMOLICION DE DALAS Y CASTILLOS EXISTENTES DE CONCRETO ARMADO DE 14 X 20 CMS. A MANO CON MARRO Y CINCEL Y/O CUÑA, INCLUYE: MANO DE OBRA, HERRAMIENTA, EQUIPO Y ACOPIO DE MATERIAL PRODUCTO DE LA DEMOLICION PARA SU POSTERIOR RETIRO.","ML ","1.3000",0,"CERO PESOS 00/100 M.N.",0,260840]
["B.02(319)","ENTREPISOS, CUBIERTA Y ACABADOS DE AZOTEA         ",null,null,null,null,{"$f":"TEXT(SUM(G22:G22), \"$ #,##0.00 ;\")","v":"$ 0.00 "}]
[344125,"IMPERMEABILIZACION DE MUROS O LOSAS, A BASE DE MEMBRANA PREFABRICADA, MCA. IMPERQUIMIA, UNIPLAS AERO PLUS SBS, ALTO DESEMPEÑO CON VENTILACION ANTIABOLSAMIENTOS, FABRICADA A BASE DE ASFALTOS MODIFICADOS CON POLIMEROS SINTETICOS SBS (ESTIRENO BUTADIENO ESTIRENO) REFORZADA CON MALLA POLIESTER DE ALTA RESISTENCIA, ACABADO APARENTE A BASE DE GRAVILLA ESMALTADA A FUEGO, 4.5 MM  DE ESPESOR TOTAL, COLOR ROJO TERRACOTA, GARANTIA POR ESCRITO DE 10 AÑOS, POR LA EMPRESA CONTRATISTA., INCLUYE: LIMPIEZA Y PREPARACION DE LA SUPERFICIE, APLICACION DE PRIMER IMPERCOAT PRIMARIO SL, PARA ANCLAJE Y TAPAPORO DE LA SUPERFICIE, SELLADO DE FISURAS Y GRIETAS A BASE DE CEMENTO PLASTICO BITUMINOSO IMPERCOAT CEMENTO SBS, SUMINISTRO Y COLOCACION DE MEMBRANA POR MEDIO DE TERMOFUSION A BASE DE FUEGO DE SOPLETE DE GAS BUTANO, HACIENDO TRASLAPES MINIMOS DE 0.10 MTS. EN AMBOS SENTIDOS, SELLADO DE ORILLAS, REMATES Y TRASLAPES, MATERIALES MENORES Y DE CONSUMO, CORTES, DESPERDICIOS, LIMPIEZA GENERAL, HERRAMIENTAS, MANO DE OBRA ESPECIALIZADA Y ACARREOS AL SITIO DE SU COLOCACION.","M2 ","76.0800",0,"CERO PESOS 00/100 M.N.",0,260841]
["B.03(355)","RECUBRIMIENTOS Y ACABADOS                         ",null,null,null,null,{"$f":"TEXT(SUM(G24:G25), \"$ #,##0.00 ;\")","v":"$ 0.00 "}]
[355022,"APLANADO DE MUROS Y/O TECHOS CON MORTERO CEMENTO-CAL-ARENA DE RIO EN PROP. 1:2:6 DE 2 CM. DE ESPESOR PROMEDIO, A PLOMO Y REGLA, ACABADO APALILLADO FINO, INCLUYE: MATERIALES, DESPERDICIOS, ANDAMIOS, HERRAMIENTAS, PLOMEO, NIVELACION, REMATES, LIMPIEZA DEL AREA DE TRABAJO Y ACARREO DE MATERIALES AL SITIO DE SU UTILIZACION. A CUALQUIER NIVEL.\n","M2 ","1.0000",0,"CERO PESOS 00/100 M.N.",0,260842]
[357322,"BOQUILLAS EN PUERTAS Y VENTANAS, CON MORTERO CEMENTO-CAL-ARENA 1:2:6, INCLUYE: ANDAMIOS Y ACARREO DE MATERIALES AL SITIO DE SU UTILIZACION.","ML ","1.0000",0,"CERO PESOS 00/100 M.N.",0,260843]
["B.04(372)","PISOS                                             ",null,null,null,null,{"$f":"TEXT(SUM(G27:G28), \"$ #,##0.00 ;\")","v":"$ 0.00 "}]
[344511,"SUMINISTRO Y COLOCACION DE JUNTA DE CONTRACCION ELASTOMERICA. EN PISOS CON UNA SECCION TRANSVERSAL DE 6 X 10 MM, A BASE DE SILICON DE COLOR PARA JUNTAS DE DILATACION, INCLUYE: LIMPIEZA DEL AREA A TRATAR, DESPERDICIOS Y ACARREO DEL MATERIAL AL SITIO DE SU COLOCACION.","ML ","13.7200",0,"CERO PESOS 00/100 M.N.",0,260844]
[376146,"SUMINISTRO Y COLOCACION DE CENEFA DE 15.00 CM APROXIMADAMENTE A BASE DE  PISO DE LOSETA CERAMICA DE PRIMERA, QUE DEBERA CUMPLIR CON LAS SIGUIENTES CARACTERISTICAS TECNICAS: ABSORCION <= 3% , COEFICIENTE DE ESTATICO DE FRICCION >= 0.5, MODULO DE RUPTURA >= 300 KG/CM², PEI, RESISTENCIA A LA ABRASION VISIBLE 1500 CICLOS (PEI IV), RESISTENTE AL MANCHADO, RESISTENCIA AL RAYADO >= 5.0 MOHS, RESISTENTE A LOS QUIMICOS, ASENTADO CON PEGA PISO Y JUNTEADO CON JUNTEADOR DE COLOR, CON JUNTAS DE 4.00 MM. DE ANCHO MINIMO. INCLUYE: HERRAMIENTAS, MATERIALES, TRAZO, CORTES,  NIVELACION,  LIMPIEZA, DESPERDICIOS, MANO DE OBRA Y ACARREO DE MATERIALES AL SITIO DE SU UTILIZACION.","ML ","1.3000",0,"CERO PESOS 00/100 M.N.",0,260845]
["B.05(393)","PINTURA                                           ",null,null,null,null,{"$f":"TEXT(SUM(G30:G32), \"$ #,##0.00 ;\")","v":"$ 0.00 "}]
[393022,"PINTURA VINIL-ACRÍLICA A BASE DE AGUA ACABADO SEMIMATE  LAVABLE, PARA INTERIORES Y EXTERIORES QUE NO DESPRENDA VAPORES TÓXICOS NI OLORES DESAGRADABLES, CON LAS SIGUIENTES CARACTERÍSTICAS ( SÓLIDOS POR PESO 46-52%, SÓLIDOS POR VOLUMEN 30-36%, VISCOSIDAD DE 100-130 UK A 25°C, DENSIDAD > O = 1.2 TON/M3., LAVABILIDAD > O = 4,000 CICLOS, TIEMPO DE SECADO AL TACTO, 30-40 MIN., TIEMPO DE SECADO DURO < O = 8 HRS., CICLO DE CURADO DE 7 DIAS, PH 6-8, RENDIMIENTO EN SUP. LISA 8-10 M2/LT., FINEZA DE MOLIDO (HEGMAN) 3-7 UH.)  EN MUROS APLANADOS DE MEZCLA APALILLADO O PULIDO, TRABAJO TERMINADO, A DOS MANOS, INCLUYE: MATERIALES MENORES Y DE CONSUMO, ANDAMIOS, PREPARACION DE LA SUPERFICIE, SELLADO DE LA SUPERFICIE, HERRAMIENTAS, LIMPIEZA, MANO DE OBRA Y  ACARREOS DE MATERIALES AL SITIO DE SU UTILIZACIÓN.","M2 ","50.0000",0,"CERO PESOS 00/100 M.N.",0,260846]
[393052,"PINTURA VINIL-ACRÍLICA A BASE DE AGUA ACABADO SEMIMATE  LAVABLE, PARA INTERIORES Y EXTERIORES QUE NO DESPRENDA VAPORES TÓXICOS NI OLORES DESAGRADABLES, CON LAS SIGUIENTES CARACTERÍSTICAS ( SÓLIDOS POR PESO 46-52%, SÓLIDOS POR VOLUMEN 30-36%, VISCOSIDAD DE 100-130 UK A 25°C, DENSIDAD > O = 1.2 TON/M3., LAVABILIDAD > O = 4,000 CICLOS, TIEMPO DE SECADO AL TACTO, 30-40 MIN., TIEMPO DE SECADO DURO < O = 8 HRS., CICLO DE CURADO DE 7 DIAS, PH 6-8, RENDIMIENTO EN SUP. LISA 8-10 M2/LT., FINEZA DE MOLIDO (HEGMAN) 3-7 UH.)  EN LOSAS Y ELEMENTOS DE CONCRETO, TRABAJO TERMINADO, A DOS MANOS, INCLUYE: MATERIALES MENORES Y DE CONSUMO, ANDAMIOS, PREPARACION DE LA SUPERFICIE DE CONCRETO, SELLADO DE LA SUPERFICIE, HERRAMIENTAS, LIMPIEZA, MANO DE OBRA Y  EQUIPO DE SEGURIDAD. A CUALQUIER ALTURA.","M2 ","40.0000",0,"CERO PESOS 00/100 M.N.",0,260847]
[393142,"PINTURA DE ESMALTE ALQUIDALICO ANTICORROSIVO, ACABADO BRILLANTE, PARA INTERIORES Y EXTERIORES QUE NO DESPRENDA VAPORES TÓXICOS NI OLORES DESAGRADABLES, CON LAS SIGUIENTES CARACTERÍSTICAS ( SÓLIDOS POR PESO 49-60%, SÓLIDOS POR VOLUMEN 40-46%, VISCOSIDAD DE 110-160 UK A 25°C, DENSIDAD 0.9-1.2 TON/M3., BRILLO A 60°C, 90%, TIEMPO DE SECADO AL TACTO, < O = 6 HRS., TIEMPO DE SECADO DURO < O = 24 HRS., ADHERENCIA 100%, RENDIMIENTO EN SUP. LISA 8-10 M2/LT., DILUCIÓN MÁXIMA (AGUARRÁS, THINER), 15 %,  EN HERRERIA ABIERTA DE PERFILES ESTRUCTURALES (PROTECCIONES), MEDIDA POR UN SOLO LADO, TRABAJO TERMINADO, A DOS MANOS, INCLUYE: MATERIALES MENORES Y DE CONSUMO, ANDAMIOS, PREPARACION DE LA SUPERFICIE, HERRAMIENTAS, LIMPIEZA, MANO DE OBRA Y  EQUIPO DE SEGURIDAD. A CUALQUIER NIVEL. (LA PINTURA ES POR AMBOS LADOS DE LA HERRERIA, PERO PARA SU PAGO ES MEDIDA SOLO POR 1 SOLO LADO).","M2 ","4.3000",0,"CERO PESOS 00/100 M.N.",0,260848]
["B.06(396)","LIMPIEZA                                          ",null,null,null,null,{"$f":"TEXT(SUM(G34:G36), \"$ #,##0.00 ;\")","v":"$ 0.00 "}]
[396012,"LIMPIEZA DE PISOS DE CONCRETO CON AGUA Y ACIDO MURIATICO AL 10%.","M2 ","9.0000",0,"CERO PESOS 00/100 M.N.",0,260849]
[396022,"LIMPIEZA EN PISO DE CERAMICA, CON AGUA Y JABON.","M2 ","48.0000",0,"CERO PESOS 00/100 M.N.",0,260850]
[396042,"LIMPIEZA DE VIDRIOS CON AGUA Y JABON, 2 CARAS.","M2 ","4.3000",0,"CERO PESOS 00/100 M.N.",0,260851]
["B.07(410)","CANCELERIA, HERRERIA, ALUMINIO, VIDRIOS Y CHAPAS  ",null,null,null,null,{"$f":"TEXT(SUM(G38:G42), \"$ #,##0.00 ;\")","v":"$ 0.00 "}]
[412041,"FABRICACION, SUMINISTRO Y COLOCACION DE PROTECCIONES PARA VENTANERIA A BASE DE HERRERIA ESTRUCTURAL DE ACERO, ELABORADA CON UN PERFIL PERIMETRAL DE ANGULO DE 1 1/2\" X 1 1/2\" X 3/16\",  HORIZONTALES DE REDONDO SOLIDO LISO DE 1/2\" SEPARADOS  DE C. A C. 11.5 CM. PROMEDIO Y REFUERZOS VERTICALES DE SOLERA DE 3/16\" X 1 1/4\" COLOCADOS A @ 73.5 CM. PROMEDIO, CON PERFORACIONES PARA INSERCION DE REDONDOS. ANCLADA A ESTRUCTURA (CONSTRUCCION) A BASE DE TORNILLO CON BARRENANCLA Y/O SOLDADURA,  INCLUYE: TRAZO, CORTES, SOLDADURA, NIVELACION, PLAMEO, PERFORACIONES, PINTURA DE TALLER,  AJUSTES Y DETALLES REALIZADOS EN OBRA DE ACUERDO A LO CONSTRUIDO,  ACARREOS, LIMPIEZA, MATERIALES, DESPERDICIOS, HERRAMIENTAS, EQUIPOS, MANO DE OBRA CALIFICADA Y ACARREO DE MATERIALES AL SITIO DE SU COLOCACION. EN CUALQUIER NIVEL.","M2 ","4.3000",0,"CERO PESOS 00/100 M.N.",0,260852]
[422020,"SUMINISTRO Y COLOCACION DE PUERTA PREFABRICADA, CON MEDIDAS GENERALES DE 1.20 X 2.10 MTS.,  MCA. PORCELTECH O SIMILAR EN GARANTIA Y CALIDAD. MOD. BETA, TIPO TAMBOR DE 36 MM. DE ESPESOR, FABRICADA CON BASTIDOR DE PERFIL TUBULAR  GALVANIZADO DE 1 1/4\" , NUCLEO RELLENO CON PANEL HONEY COMB DE 1 3/8\" DE ESPESOR Y DOBLE CARA (INTERIOR-EXTERIOR) DE  LAMINA DE ACERO PORCELANIZADO CAL. 24,  EN COLOR INDICADO POR LA SUPERVISION Y CUBRECANTOS DE ALUMINIO ANODIZADO NATURAL , MARCO Y ANTEPECHO DE HERRERIA TUBULAR DE PERFILES COMERCIALES DE 3\" X 1 1/2\" CAL 14., TOPE DE ANGULO DE 3/4\" X 1/8\", INCLUYE: MARCO, HERRAJES, BISAGRAS, NIVELACION, PLOMEO, ELEMENTOS DE FIJACION, MATERIALES MENORES Y DE CONSUMO, SELLADO PERIMETRAL, HERRAMIENTAS, LIMPIZA, MANO DE OBRA, FLETES Y ACARREOS DE MATERIALES AL SITIO DE SU COLOCACION, EN CUALQUIER NIVEL.","PZA","1.0000",0,"CERO PESOS 00/100 M.N.",0,260853]
[424094,"SUMINISTRO Y COLOCACION DE CERRADURA TIPO EUROPEO PARA PUERTA EXTERIOR, MCA. JAKO, MOD. KIT9001ENT, FABRICADA EN ACERO INOXIDABLE CON ACABADO SATINADO, DOBLE MANIJA DE PERFIL TUBULAR REDONDO Y CILINDRO LLAVE-MARIPOSA, INCLUYE: TRAZO, TALADROS, ELEMENTOS DE FIJACION, HERRAMIENTAS, CILINDRO, CHAPETÓN, LLAVES, LIMPIEZA,  MANO DE OBRA Y  ACARREO DE MATERIAL AL SITIO DE SU UTILIZACION.","PZA","1.0000",0,"CERO PESOS 00/100 M.N.",0,260854]
[424322,"SUMINISTRO Y COLOCACION DE TOPES DE PISO PARA PUERTA. INC.: ACARREO DE MATERIAL AL SITIO DE SU UTILIZACION, A CUALQUIER NIVEL.","PZA","1.0000",0,"CERO PESOS 00/100 M.N.",0,260855]
[426010,"SUMINISTRO Y COLOCACION DE CRISTAL FLOTADO DE 6 MM. DE ESPESOR,  ASENTADO CON SILICON, INCLUYE: CORTES, DESPERDICIOS Y ACARREO DE MATERIALES AL SITIO DE SU UTILIZACION A CUALQUIER NIVEL.","M2 ","0.4800",0,"CERO PESOS 00/100 M.N.",0,260856]
["B.08(510)","INSTALACION ELECTRICA EN EDIFICIO                 ",null,null,null,null,{"$f":"TEXT(SUM(G44:G48), \"$ #,##0.00 ;\")","v":"$ 0.00 "}]
[550090,"SUMINISTRO E INSTALACION DE LUMINARIO FLUORESCENTE DE SOBREPONER, TIPO ENVOLVENTE, AHORRADOR DE ENERGIA DE 2 X 32 WATTS. FABRICADO EN LAMINA CAL 22, RECUBIERTO CON TRATAMIENTO FOSFATIZADO Y PINTURA ACRILICA O POLIESTER COLOR BLANCO, APLICADA ELECTROSTATICAMENTE Y TERMOENDURECIDA, PARA OBTENER UNA REFLECTANCIA MINIMA DE 90%, CON DIFUSOR ACRILICO PRISMATICO 100% PURO, TIPO ENVOLVENTE, CON UNA LONGITUD DE 120 CM., BALASTRO ELECTRONICO DE BAJA EMISION DE ARMONICAS, PARA OPERAR UNA O DOS LAMPARAS T8 DE 32 WATTS, LA LUMINARIA (COMPLETA) DEBERA CUMPLIR CON LA NORMA ANCE, INCLUYE: COPIA DE CERTIFICACION ANCE ANEXA EN ELTRAMITE DE LA ESTIMACION, FIJACION, CONEXION, MATERIALES MENORES, HERRAMIENTAS, GARANTIAS,  MANO DE OBRA, PRUEBAS Y ACARREOS.","PZA","2.0000",0,"CERO PESOS 00/100 M.N.",0,260857]
[550190,"SUMINISTRO E INSTALACION DE LUMINARIO FLUORESCENTE DE SOBREPONER, TIPO ENVOLVENTE, AHORRADOR DE ENERGIA DE 2 X 59 WATTS. FABRICADO EN LAMINA CAL 22, RECUBIERTO CON TRATAMIENTO FOSFATIZADO Y PINTURA ACRILICA O POLIESTER COLOR BLANCO, APLICADA ELECTROSTATICAMENTE Y TERMOENDURECIDA, PARA OBTENER UNA REFLECTANCIA MINIMA DE 90%, CON DIFUSOR ACRILICO PRISMATICO 100% PURO, TIPO ENVOLVENTE, CON UNA LONGITUD DE 240 CM., BALASTRO ELECTRONICO DE BAJA EMISION DE ARMONICAS, PARA OPERAR UNA O DOS LAMPARAS T8 DE 59 WATTS, (EQUIVALENTE A 4 LAMPARAS T8 DE 32 WATTS.), LA LUMINARIA (COMPLETA) DEBERA CUMPLIR CON LA NORMA ANCE, INCLUYE: COPIA DE CERTIFICACION ANCE ANEXA EN EL TRAMITE DE LA ESTIMACION, FIJACION, CONEXION, MATERIALES MENORES, HERRAMIENTAS, GARANTIAS, MANO DE OBRA, PRUEBAS Y ACARREOS.","PZA","1.0000",0,"CERO PESOS 00/100 M.N.",0,260858]
[905310,"RECABLEADO DE SALIDA ELECTRICA PARA APAGADOR EN DUCTERIA EXISTENTE, CABLE VINANEL THW-LS 600 V. A 75° C, 90° C, MARCA CONDUCTORES MONTERREY, (VIAKON-PROTOCOLIZADO), CABLE VINANEL 21 THW-LS 600 V. A 75° C, 90° C, MARCA CONDUMEX (CONDUMEX PROTOCOLIZADO).  CALIBRE 12, INCLUYE: DESCONEXIONES, RETIRO DE CABLES AL 100%, ACCESORIOS, APAGADOR, CONEXION A TIERRA, TAPA DE ALUMINIO,   MATERIALES MENORES,  HERRAMIENTA, MANO DE OBRA ESPECIALIZADA , CONEXIONES, LIMPIEZA DEL AREA DE TRABAJO, PRUEBAS, DESPERDICIOS Y ACARREO DEL MATERIAL AL SITIO DE SU COLOCACION, A CUALQUIER NIVEL. (NO INCLUYE DUCTERIA, REGISTRO Y CHALUPAS)","SAL","2.0000",0,"CERO PESOS 00/100 M.N.",0,260859]
[905321,"RECABLEADO DE SALIDA ELECTRICA PARA CONTACTO EN DUCTERIA EXISTENTE, CABLE VINANEL THW-LS 600 V. A 75° C, 90° C, MARCA CONDUCTORES MONTERREY, (VIAKON-PROTOCOLIZADO), CABLE VINANEL 21 THW-LS 600 V. A 75° C, 90° C, MARCA CONDUMEX (CONDUMEX PROTOCOLIZADO).  CALIBRE 12 EN FASES Y CABLE DE COBRE DESNUDO CAL 12 EN TIERRA FISICA, INCLUYE: DESCONEXIONES, RETIRO DE ACCESORIOS Y CABLES AL 100%,  MATERIALES MENORES,  HERRAMIENTA, MANO DE OBRA ESPECIALIZADA , CONEXIONES, LIMPIEZA DEL AREA DE TRABAJO, PRUEBAS, DESPERDICIOS Y ACARREO DEL MATERIAL AL SITIO DE SU COLOCACION, A CUALQUIER NIVEL. (NO INCLUYE DUCTERIA, REGISTRO Y CHALUPAS)","SAL","5.0000",0,"CERO PESOS 00/100 M.N.",0,260860]
[907568,"RECABLEADO DE SALIDA ELECTRICA DE CENTRO EN DUCTERIA EXISTENTE, CABLE VINANEL THW-LS 600 V. A 75° C, 90° C, MARCA CONDUCTORES MONTERREY, (VIAKON-PROTOCOLIZADO), CABLE VINANEL 21 THW-LS 600 V. A 75° C, 90° C, MARCA CONDUMEX (CONDUMEX PROTOCOLIZADO).  CALIBRE 10 Y 12, INCLUYE: DESCONEXIONES, RETIRO DE CABLES AL 100%, MATERIALES MENORES, HERRAMIENTA, MANO DE OBRA ESPECIALIZADA , CONEXIONES, LIMPIEZA DEL AREA DE TRABAJO, PRUEBAS, DESPERDICIOS Y ACARREO DEL MATERIAL AL SITIO DE SU COLOCACION, A CUALQUIER NIVEL. (NO INCLUYE DUCTERIA, REGISTRO Y CHALUPAS)","SAL","5.0000",0,"CERO PESOS 00/100 M.N.",0,260861]
[null,"RESUMEN DE PARTIDAS"]
["BAS-CON-04051","TERMINACIÓN DE AULA DIDÁCTICA (APLANADOS, PINTURAS CANCELERÍAS E INSTALACIONES ELÉCTRICAS) EN EL JARDÍN DE NIÑOS ESTEFANÍA CASTAÑEDA CCT 14DJN0918Z, UBICADO EN LA LOCALIDAD LAS DELICIAS, MUNICIPIO DE TOMATLÁN, JALISCO.",null,null,null,null,{"$f":"G17","v":"$ 0.00 "}]
["B","EDIFICIO B",null,null,null,null,{"$f":"G18","v":"$ 0.00 "}]
["B.01(140)","DEMOLICIONES, DESMONTAJES Y MECANICA DE SUELOS    ",null,null,null,null,{"$f":"G19","v":"$ 0.00 "}]
["B.02(319)","ENTREPISOS, CUBIERTA Y ACABADOS DE AZOTEA         ",null,null,null,null,{"$f":"G21","v":"$ 0.00 "}]
["B.03(355)","RECUBRIMIENTOS Y ACABADOS                         ",null,null,null,null,{"$f":"G23","v":"$ 0.00 "}]
["B.04(372)","PISOS                                             ",null,null,null,null,{"$f":"G26","v":"$ 0.00 "}]
["B.05(393)","PINTURA                                           ",null,null,null,null,{"$f":"G29","v":"$ 0.00 "}]
["B.06(396)","LIMPIEZA                                          ",null,null,null,null,{"$f":"G33","v":"$ 0.00 "}]
["B.07(410)","CANCELERIA, HERRERIA, ALUMINIO, VIDRIOS Y CHAPAS  ",null,null,null,null,{"$f":"G37","v":"$ 0.00 "}]
["B.08(510)","INSTALACION ELECTRICA EN EDIFICIO                 ",null,null,null,null,{"$f":"G43","v":"$ 0.00 "}]
[]
["IMPORTE CON LETRA (IVA INCLUIDO)",null,null,null,null,"SUBTOTAL M.N.",{"$f":"TEXT(G17,  \"$ #,##0.00 ;\")","v":"$ 0.00 "}]
[{"$f":"UPPER(CONVERTIRNUM(ROUND( G17 * 1.16, 2)))","v":"CERO PESOS 00/100 M.N."},null,null,null,null,"IVA M.N.",{"$f":"TEXT(ROUND( G17 * 0.16, 2),  \"$ #,##0.00 ;\")","v":"$ 0.00 "}]
[null,null,null,null,null,"TOTAL M.N.",{"$f":"TEXT(ROUND( G17 * 1.16, 2),  \"$ #,##0.00 ;\")","v":"$ 0.00 "}]